Cogmind - Beta 9.6 @@@ ROGUE MODE // 2020.09.12 @ 16:04:48 Player: Finestep Result: Self-destructed Performance ------------- Evolutions (4) 2000 Regions Visited (14) 2800 Robots Destroyed (292) 1460 Value Destroyed (12495) 12495 Prototype IDs (33) 660 Alien Tech Used (0) 0 Bonus (6081) 6081 TOTAL SCORE: 25496 Bonus ------- High Alert Combat Kills 1730 Follower Combat Kills 1470 Entered Garrisons 800 Used RIF Installer 2000 Aligned with FarCom 300 Friendly Fire -219 Cogmind --------- Core Integrity 120/850 Matter 176/300 Energy 500/500 System Corruption 2% Temperature Cool (0) Movement Walking (240) Ox4 Location -6/Factory Parts ------- > --- POWER (1) -------- (None) > --- PROPULSION (2) --- Armored Leg > --- UTILITY (10) ----- High-capacity Storage Unit High-capacity Storage Unit High-capacity Battery Relay Coupler [Grunt] (38) > --- WEAPON (2) ------- Gauss Rifle > --- INVENTORY (20) --- Armored Wheel Long-range Terrain Scanner Relay Coupler [NC] (42) Relay Coupler [NC] (40) Relay Coupler [NC] (45) Relay Coupler [Swarmer] (52) Relay Coupler [Grunt] (43) Relay Coupler [Duelist] (39) Relay Coupler [Sentry] (38) Relay Coupler [Sentry] (28) Relay Coupler [Demolisher] (31) Relay Coupler [Behemoth] (27) Compact Ion Cannon AWS/Gauss Rocket Array Field Lobotomy Kit Peak State ------------ > --- POWER ------------ Enhanced Nuclear Core > --- PROPULSION ------- Armored Wheel Armored Wheel > --- UTILITY ---------- High-capacity Storage Unit High-capacity Storage Unit Improved Medium Armor Plating Improved Medium Armor Plating Improved Heavy Armor Plating Medium Reactive Plating Medium Reflective Plating Relay Coupler [Brawler] Relay Coupler [Sentry] > --- WEAPON ----------- AWS/Gauss > --- INVENTORY -------- Fission Core High-capacity Battery Long-range Terrain Scanner Relay Coupler [NC] Relay Coupler [NC] Relay Coupler [NC] Relay Coupler [Swarmer] Relay Coupler [Grunt] Relay Coupler [Grunt] Relay Coupler [Sentry] Relay Coupler [Sentry] Relay Coupler [Demolisher] System Backup Module Compact Ion Cannon Compact Ion Cannon Coil Gun Coil Gun Coil Gun Rocket Array Field Lobotomy Kit [Rating: 68] Favorites ----------- Power Enhanced Nuclear Core Engine Heavy Ion Engine Power Core Enhanced Nuclear Core Propulsion Light Treads Treads Light Treads Leg Carbon-fiber Leg Wheel Armored Wheel Utility High-capacity Storage Unit Device Improved Heat Sink Storage High-capacity Storage Unit Processor Modified TNC Hackware Relay Coupler [Sentry] Protection Light Armor Plating Weapon Heavy Assault Rifle Energy Gun Medium Laser Energy Cannon Plasma Cannon Ballistic Gun Heavy Assault Rifle Ballistic Cannon Improved Light Cannon Launcher Rocket Launcher Special Weapon Remote Datajack Slashing Weapon Ripper Build | -11 -10 -9 -9 -9 -8 -8 -8 -8 -8 -7 -7 -7 -7 -6 ------- Run | Scr Mat Mat Min Exi Min Mat Gar Mat Gar Fac Gar Fac Gar Fac Slots Evolved 8 | . . 2 . . . 2 . . . 2 . . . 2 Power . | . . . . . . . . . . . . . . . Propulsion . | . . . . . . . . . . . . . . . Utility 8 | . . 2 . . . 2 . . . 2 . . . 2 Weapon . | . . . . . . . . . . . . . . . Parts Attached 360 | 7 15 24 7 5 5 28 48 26 23 14 39 39 25 55 Power 21 | 1 1 4 . 1 . 1 1 3 . 1 1 1 . 6 Engine 11 | 1 . 4 . 1 . 1 . 3 . 1 . . . . Core 10 | . 1 . . . . . 1 . . . 1 1 . 6 Reactor . | . . . . . . . . . . . . . . . Propulsion 36 | 2 2 4 1 . . 5 6 2 2 . 2 3 1 6 Treads 20 | 2 2 4 1 . . 5 3 2 . . . . . 1 Leg 6 | . . . . . . . 3 . . . . . . 3 Wheel 10 | . . . . . . . . . 2 . 2 3 1 2 Hover . | . . . . . . . . . . . . . . . Flight . | . . . . . . . . . . . . . . . Utility 113 | 2 2 4 2 4 . 6 15 6 5 6 18 10 12 21 Device 26 | . . . . . . 2 2 . 2 1 8 . 2 9 Storage 19 | 2 2 2 . 4 . 2 3 . . . 1 2 . 1 Processor 2 | . . . . . . . . . . 2 . . . . Hackware 26 | . . . . . . . 3 3 1 3 4 4 5 3 Protection 40 | . . 2 2 . . 2 7 3 2 . 5 4 5 8 Artifact . | . . . . . . . . . . . . . . . Weapon 190 | 2 10 12 4 . 5 16 26 15 16 7 18 25 12 22 Energy Gun 5 | 1 1 . . . . 1 2 . . . . . . . Energy Cannon 39 | . . . 1 . 1 2 5 . 4 . 3 12 6 5 Ballistic Gun 85 | 1 9 5 1 . 2 11 13 9 7 4 7 3 1 12 Ballistic Cannon 8 | . . 7 1 . . . . . . . . . . . Launcher 16 | . . . 1 . 2 2 1 2 2 . 1 3 2 . Special Weapon 29 | . . . . . . . 3 4 2 2 7 5 3 3 Impact Weapon . | . . . . . . . . . . . . . . . Slashing Weapon 8 | . . . . . . . 2 . 1 1 . 2 . 2 Piercing Weapon . | . . . . . . . . . . . . . . . Special Melee Weapon . | . . . . . . . . . . . . . . . Unidentified Prototypes 5 | . . 3 . . . 1 . 1 . . . . . . Parts Lost 69 | . 3 4 4 . . 5 4 1 . . 7 5 2 34 Power 8 | . 1 1 . . . . . 1 . . 1 1 . 3 Propulsion 17 | . 1 2 1 . . 3 1 . . . 2 1 . 6 Utility 28 | . . . 2 . . . 3 . . . 2 1 1 19 Weapon 16 | . 1 1 1 . . 2 . . . . 2 2 1 6 Highest Loss Streak 10 | . 1 3 2 . . 2 1 1 . . 5 3 2 10 Average Slot Usage (%) 92 | . 99 98 99 100 100 88 87 89 89 92 91 91 91 90 Engine 5 | . 10 7 11 11 11 9 6 8 9 7 2 . . . Core 2 | . 3 2 . . . . 2 . . . 4 7 7 5 Treads 11 | . 27 21 21 22 22 17 13 18 12 . . . . . Wheel 5 | . . . . . . . . . 5 15 14 15 15 8 Device 5 | . . . . . . 7 7 . 8 6 9 5 . 12 Storage 26 | . 28 36 33 38 44 27 27 27 27 23 23 22 23 16 Processor 2 | . . . . . . . . . . 8 7 7 7 2 Hackware 6 | . . . . . . . 5 11 . 12 6 12 12 17 Protection 5 | . . 7 10 5 . 8 5 6 8 1 5 3 8 7 Energy Cannon 5 | . . . . . 8 4 8 . 1 . 6 9 10 6 Ballistic Gun 8 | . 21 6 6 11 1 10 8 17 15 10 5 3 . 5 Ballistic Cannon 2 | . . 15 15 11 11 3 . . . . . . . . Naked Turns . | . . . . . . . . . . . . . . . Heaviest Build 189 | 15 43 67 67 125 127 149 173 170 177 169 172 185 189 187 Greatest Support 43 | 40 40 40 40 40 40 43 40 40 40 24 24 24 24 40 Greatest Overweight (x) 29 | . 1 3 3 3 3 3 9 4 14 7 7 7 7 29 Average Overweight (x) 4 | . . 1 1 2 3 3 4 3 5 6 6 6 7 5 Largest Inventory Capacity 60 | 8 16 22 22 34 34 54 58 40 40 40 60 52 40 40 Average Capacity 34 | 7 15 22 22 28 34 38 38 40 40 40 40 39 40 28 Most Carried 40 | 3 16 22 22 32 34 38 40 40 40 40 40 40 40 40 Average Carried 33 | 2 13 20 21 26 33 37 37 39 39 39 39 39 39 28 Final Capacity 40 | 8 16 22 22 34 34 38 40 40 40 40 40 40 40 20 Final Carried 40 | 3 15 22 22 32 34 38 40 40 40 40 40 40 40 17 Class Distribution -------------------- 37% | Bothacker-Mutant 35% | Hauler-Mutant 11% | Botlord-Mutant 7% | Mutant 4% | Bothacker-Skirmisher 3% | Scavenger-Mutant Dominant Class ---------------- Mutant | -10/Materials Hauler-Mutant | -9/Materials Hauler-Mutant | -9/Mines Hauler-Mutant | -9/Exiles Hauler-Mutant | -8/Mines Hauler-Mutant | -8/Materials Hauler-Mutant | -8/Garrison Bothacker-Mutant | -8/Materials Bothacker-Skirmisher | -8/Garrison Bothacker-Mutant | -7/Factory Bothacker-Mutant | -7/Garrison Bothacker-Mutant | -7/Factory Botlord-Mutant | -7/Garrison Botlord-Mutant | -6/Factory Resources | -11 -10 -9 -9 -9 -8 -8 -8 -8 -8 -7 -7 -7 -7 -6 ----------- Run | Scr Mat Mat Min Exi Min Mat Gar Mat Gar Fac Gar Fac Gar Fac Matter Collected 8280 | 324 504 775 271 30 177 856 848 518 628 262 717 645 446 1279 Remotely . | . . . . . . . . . . . . . . . Salvage Created 11003 | 92 715 947 362 . 314 1341 1008 523 412 104 664 748 827 2946 Parts 595 | 9 52 59 25 . 23 69 45 25 26 5 31 49 29 148 Haulers Intercepted 9 | . 1 3 . . . 2 . 3 . . . . . . Recyclers Shooed 16 | . 1 1 1 . . 2 . 1 . . . . . 10 Parts Field Recycled . | . . . . . . . . . . . . . . . Retrieved Matter . | . . . . . . . . . . . . . . . Parts Self-Destructed . | . . . . . . . . . . . . . . . Prevented . | . . . . . . . . . . . . . . . Kills | -11 -10 -9 -9 -9 -8 -8 -8 -8 -8 -7 -7 -7 -7 -6 ------- Run | Scr Mat Mat Min Exi Min Mat Gar Mat Gar Fac Gar Fac Gar Fac Combat Hostiles Destroyed 206 | . 19 19 12 . 10 24 20 7 9 2 16 13 18 37 Guns 87 | . 19 4 1 . . 9 12 4 3 2 6 1 1 25 Cannons 86 | . . 15 10 . 3 11 6 . 2 . 8 7 12 12 AOE 32 | . . . 1 . 7 4 2 3 4 . 2 4 5 . Classes Destroyed 15 | 2 6 2 2 . . 2 1 . . . . . . . Worker 21 | . 2 1 . . 2 1 . 3 . . . 5 . 7 Builder 13 | . 1 1 . . . 3 . . . . . 2 . 6 Tunneler 8 | 2 1 . 2 . 2 1 . . . . . . . . Hauler 9 | . 1 3 . . . 2 . 3 . . . . . . Recycler 22 | 1 1 4 1 . 1 3 . 1 . . . 2 . 8 Mechanic 1 | . . 1 . . . . . . . . . . . . Operator 2 | . . . . . . 1 . . . . . . . 1 Watcher 9 | . 1 3 . . . 3 . . . . 1 1 . . Swarmer 51 | . 9 . 4 . 4 4 . 3 7 . 5 5 . 10 Grunt 102 | . 10 14 6 . 4 14 10 3 1 1 9 2 15 13 Brawler 1 | . . . 1 . . . . . . . . . . . Duelist 7 | . . . 1 . 2 . 2 . . . 1 . 1 . Sentry 28 | . . 5 . . . 5 6 . . 1 1 4 2 4 Hunter 9 | . . . . . . . 2 . 1 . . . . 6 Programmer 9 | . . . . . . 1 . 1 . . . 3 . 4 Best Kill Streak 8 | 1 4 5 6 . 4 8 4 4 4 2 4 6 3 7 Combat Bots Only 7 | . 3 4 4 . 4 7 4 3 4 2 4 3 3 4 Max Kills in Single Turn 3 | 1 2 1 2 . 3 2 1 2 2 1 2 2 3 3 Gunslinging . | . . . . . . . . . . . . . . . Exploded 3 | . . . 1 . 3 2 1 2 2 . 2 1 3 . Melee . | . . . . . . . . . . . . . . . Uniques/NPCs Destroyed . | . . . . . . . . . . . . . . . Combat | -11 -10 -9 -9 -9 -8 -8 -8 -8 -8 -7 -7 -7 -7 -6 -------- Run | Scr Mat Mat Min Exi Min Mat Gar Mat Gar Fac Gar Fac Gar Fac Damage Taken 15461 | . 713 912 639 . 58 1450 1405 388 259 96 1406 1071 1058 6006 Core 1897 | . 97 101 24 . 26 137 179 18 35 8 206 192 144 730 Absorbed by Shields 412 | . . . . . . . 96 . . . . . 121 195 Core Remaining (%) 55 | 100 61 . . . 62 . . . 32 . . . 21 . Volleys Fired 983 | 18 74 74 30 . 16 141 89 59 48 13 93 65 75 188 Largest 2 | 2 2 2 2 . 2 2 2 2 2 2 2 2 2 2 Hottest 180 | 70 70 78 107 . 107 107 160 46 160 46 160 160 160 180 Shots Fired 1761 | 36 146 148 59 . 26 270 162 96 76 17 154 100 110 361 Gun 982 | 36 146 41 7 . 1 160 124 75 46 9 64 23 5 245 Cannon 610 | . . 107 51 . 19 103 31 . 11 . 64 51 80 93 Launcher 41 | . . . 1 . 6 7 1 7 3 . 2 9 5 . Special 128 | . . . . . . . 6 14 16 8 24 17 20 23 Kinetic 1139 | 18 116 148 52 . 11 207 120 75 46 9 64 23 5 245 Thermal 434 | 18 30 . 6 . 9 56 31 . 22 . 64 31 80 87 Explosive 41 | . . . 1 . 6 7 1 7 3 . 2 9 5 . Electromagnetic 30 | . . . . . . . 4 . . . . 20 . 6 Robot Hit Streak 24 | 9 14 12 17 . 24 15 23 11 14 11 19 10 14 23 Robot Miss Streak 10 | 3 4 3 4 . 2 7 2 4 4 1 3 4 4 10 Penetration Max 1 | . . . . . . . . . . . 1 . . 1 Secondary Targets 12 | . 3 . . . . . 4 1 . . . . . 4 Max Gunslinging Chain 1 | . 1 . . . . . 1 1 . . . . . 1 Autonomous 18 | . . . . . . . . . . . . . . 18 Shots Hit Robots 1108 | 24 98 106 39 . 13 171 96 57 30 13 99 57 66 239 Core Hits 489 | 4 44 44 21 . 20 78 38 19 14 4 30 38 35 100 Critical Hits 24 | . . 2 2 . 1 4 2 . 2 . 2 1 . 8 Critical Kills 6 | . . . 1 . 1 1 . . 1 . . . . 2 Critical Parts Destroyed 16 | . . 2 1 . . 3 1 . 1 . 2 1 . 5 Melee Attacks 13 | . . . . . . . 2 . 3 2 . 2 . 4 Impact . | . . . . . . . . . . . . . . . Slashing 13 | . . . . . . . 2 . 3 2 . 2 . 4 Piercing . | . . . . . . . . . . . . . . . Sneak Attacks 2 | . . . . . . . . . . . . . . 2 Combat Hostiles . | . . . . . . . . . . . . . . . Follow-up Attacks . | . . . . . . . . . . . . . . . Damage Inflicted 25980 | 226 1146 1978 997 . 1137 3400 1632 1146 939 94 1909 2128 2344 6904 Guns 10430 | 226 1146 407 33 . . 1198 1062 784 160 94 670 215 46 4389 Cannons 9550 | . . 1571 865 . 283 1522 465 . 160 . 1078 816 1255 1535 Explosions 5414 | . . . 95 . 854 676 104 362 314 . 161 1097 1043 708 Melee 464 | . . . . . . . . . 192 . . . . 272 Ramming 9 | . . . 4 . . 4 1 . . . . . . . Kinetic 13276 | 116 955 1978 790 . 156 1890 1033 784 160 94 670 215 46 4389 Thermal 6685 | 110 191 . 108 . 356 830 490 . 273 . 1078 507 1255 1487 Explosive 5047 | . . . 95 . 625 610 79 362 314 . 161 1050 1043 708 Electromagnetic 499 | . . . . . . 66 29 . . . . 356 . 48 Impact . | . . . . . . . . . . . . . . . Slashing 464 | . . . . . . . . . 192 . . . . 272 Piercing . | . . . . . . . . . . . . . . . Highest Corruption 3 | . . . . . . 2 2 3 3 . . 1 1 2 Average Corruption 2 | . . . . . . 1 2 2 3 . . 1 1 1 Corruption Purged 1 | . . . . . . . . . . . . . 1 . Effects 124 | . . . . . . 2 40 19 40 . . 6 1 16 Message Errors 33 | . . . . . . 1 12 6 10 . . 1 1 2 Matter Fused 18 | . . . . . . . . 2 16 . . . . . Heat Flow Errors 14 | . . . . . . . 7 1 3 . . . . 3 Energy Discharges 22 | . . . . . . . 10 4 2 . . 1 . 5 Data Loss (minor) 20 | . . . . . . . 6 2 9 . . 1 . 2 Targeting Errors 12 | . . . . . . 1 4 3 . . . 2 . 2 Weapon Failures 5 | . . . . . . . 1 1 . . . 1 . 2 Overload Shots . | . . . . . . . . . . . . . . . Overflow Damage 493 | . . 4 . . 83 42 15 24 20 . 26 71 69 139 Projectiles 165 | . . 4 . . . 37 . . 8 . 26 28 23 39 Explosions 242 | . . . . . 83 5 15 24 12 . . 43 46 14 Melee 86 | . . . . . . . . . . . . . . 86 Knockbacks 23 | . . 11 8 . 1 3 . . . . . . . . Impact . | . . . . . . . . . . . . . . . Kinetic 22 | . . 10 8 . 1 3 . . . . . . . . Secondary 1 | . . 1 . . . . . . . . . . . . Self-Inflicted Damage 207 | . . . . . 22 10 32 31 . . 36 28 . 48 Shots 7 | . . . . . 1 1 1 1 . . 1 1 . 1 Rammed 3 | . . . 2 . . 1 . . . . . . . . Targets Rammed 4 | . . . 2 . . 1 1 . . . . . . . Kicked 1 | . . . . . . . 1 . . . . . . . Crushed . | . . . . . . . . . . . . . . . Highest Temperature 413 | 54 108 405 299 . 78 195 260 267 214 5 370 261 381 413 Average Temperature 85 | 20 25 74 83 . 31 72 83 71 70 2 99 61 121 118 Received Heat Transfer 4179 | . 234 402 225 . 9 531 514 108 36 24 522 186 551 837 Effects 15 | . . . . . . . 4 . . . . . 4 7 Shutdowns 1 | . . . . . . . . . . . . . . 1 Energy Bleed 3 | . . . . . . . . . . . . . 2 1 Interference 9 | . . . . . . . 4 . . . . . 2 3 Short Circuit 2 | . . . . . . . . . . . . . . 2 Siege Activations . | . . . . . . . . . . . . . . . Robots Corrupted 1 | . . . . . . . . . . . . 1 . . Combat Hostiles 1 | . . . . . . . . . . . . 1 . . Parts Fried 3 | . . . . . . . . . . . . 3 . . Impact Corruptions . | . . . . . . . . . . . . . . . Robots Melted . | . . . . . . . . . . . . . . . Combat Hostiles . | . . . . . . . . . . . . . . . Parts Melted 24 | . . . . . 1 3 4 . 1 . 6 2 3 4 Heat Transferred 11547 | 333 508 . 185 . 472 1443 950 . 670 . 2000 800 2299 1887 Parts Sabotaged . | . . . . . . . . . . . . . . . Parts Stolen . | . . . . . . . . . . . . . . . Parts Stripped . | . . . . . . . . . . . . . . . Power Chain Reactions 2 | . . . . . . . 1 . . . . 1 . . Missiles Intercepted . | . . . . . . . . . . . . . . . Alert | -11 -10 -9 -9 -9 -8 -8 -8 -8 -8 -7 -7 -7 -7 -6 ------- Run | Scr Mat Mat Min Exi Min Mat Gar Mat Gar Fac Gar Fac Gar Fac Peak Influence 1573 | 15 244 317 256 . 380 441 1010 672 746 445 681 661 876 1573 Average Influence 456 | 8 87 171 100 . 184 250 756 367 472 234 414 304 624 988 Maximum Alert Level 4 | . 1 1 1 . 1 2 3 2 3 2 2 2 3 4 Low Security (%) 30 | 100 93 66 96 . 76 35 . 28 . 55 12 35 8 . Level 1 20 | . 6 33 3 . 23 52 5 19 31 29 32 38 10 4 Level 2 26 | . . . . . . 12 29 52 60 15 55 26 31 23 Level 3 18 | . . . . . . . 65 . 7 . . . 48 20 Level 4 4 | . . . . . . . . . . . . . . 51 Level 5 . | . . . . . . . . . . . . . . . High Security . | . . . . . . . . . . . . . . . Max Security . | . . . . . . . . . . . . . . . Squads Dispatched 38 | . 3 2 . . . 3 . 4 . 3 . 7 . 16 Investigation 8 | . 2 2 . . . . . 1 . 1 . 2 . . Extermination 6 | . . . . . . . . . . 1 . 3 . 2 Reinforcement 15 | . 1 . . . . 2 . 2 . 1 . 2 . 7 Assault 1 | . . . . . . . . . . . . . . 1 Garrison 8 | . . . . . . 1 . 1 . . . . . 6 Intercept . | . . . . . . . . . . . . . . . Construction Impeded 8 | . . . . . . 1 . 1 . . . 1 . 5 Haulers Reinforced 1 | . . . . . . . . . . . . . . 1 Stealth | -11 -10 -9 -9 -9 -8 -8 -8 -8 -8 -7 -7 -7 -7 -6 --------- Run | Scr Mat Mat Min Exi Min Mat Gar Mat Gar Fac Gar Fac Gar Fac Distress Signals 12 | . 1 1 . . . 3 1 1 . . 1 1 . 3 Communications Jammed . | . . . . . . . . . . . . . . . Distress Signals . | . . . . . . . . . . . . . . . Times Spotted 381 | . 31 24 14 . 6 38 28 19 18 8 39 36 44 76 Peak Tracking Total 8 | . 3 4 5 . 3 5 4 3 3 3 7 7 7 8 Tactical Retreats 27 | . 1 1 1 . 1 2 1 1 1 . 4 2 7 5 Traps | -11 -10 -9 -9 -9 -8 -8 -8 -8 -8 -7 -7 -7 -7 -6 ------- Run | Scr Mat Mat Min Exi Min Mat Gar Mat Gar Fac Gar Fac Gar Fac Traps Triggered 37 | . 2 . . . . . 10 1 9 . 7 1 6 1 Indirectly . | . . . . . . . . . . . . . . . Trap Hack Attempts . | . . . . . . . . . . . . . . . Triggered . | . . . . . . . . . . . . . . . Disarmed . | . . . . . . . . . . . . . . . Reprogrammed . | . . . . . . . . . . . . . . . Reused . | . . . . . . . . . . . . . . . Traps Extracted . | . . . . . . . . . . . . . . . Installed . | . . . . . . . . . . . . . . . Triggered . | . . . . . . . . . . . . . . . Machines | -11 -10 -9 -9 -9 -8 -8 -8 -8 -8 -7 -7 -7 -7 -6 ---------- Run | Scr Mat Mat Min Exi Min Mat Gar Mat Gar Fac Gar Fac Gar Fac Machines Disabled 68 | . . 1 . . 6 3 4 4 4 . 8 3 7 28 Max in Single Turn 6 | . . 1 . . 6 1 1 1 1 . 2 1 1 3 Garrison Access 2 | . . . . . . . . . . . . 1 . 1 Garrison Relay 15 | . . . . . . . 4 . 3 . 4 . 4 . Phase Generator 1 | . . . . . . . . . . . 1 . . . Machines Sabotaged . | . . . . . . . . . . . . . . . Garrisons Compromised . | . . . . . . . . . . . . . . . Overloaded Fab Kills . | . . . . . . . . . . . . . . . Fab Network Shutdowns . | . . . . . . . . . . . . . . . Hacking | -11 -10 -9 -9 -9 -8 -8 -8 -8 -8 -7 -7 -7 -7 -6 --------- Run | Scr Mat Mat Min Exi Min Mat Gar Mat Gar Fac Gar Fac Gar Fac Machines Accessed 40 | . 6 6 1 2 . 2 . 3 . 6 . 10 . 4 Terminals 21 | . 4 5 1 . . 1 . 2 . 2 . 4 . 2 Fabricators 3 | . . . . . . . . . . 1 . 1 . 1 Repair Stations 5 | . 1 1 . . . . . . . 1 . 2 . . Recycling Units 2 | . 1 . . . . . . . . . . 1 . . Scanalyzers 1 | . . . . . . . . . . 1 . . . . Garrison Access 6 | . . . . . . 1 . 1 . 1 . 2 . 1 Total Hacks 101 | . 14 20 1 5 . 5 . 11 . 19 . 20 . 6 Successful 63 | . 8 15 1 5 . 3 . 6 . 13 . 10 . 2 Failed 36 | . 5 4 . . . 2 . 5 . 6 . 10 . 4 Catastrophic 10 | . 1 . . . . 2 . 2 . 1 . 3 . 1 Database Lockouts 2 | . 1 1 . . . . . . . . . . . . Manual 50 | . 10 13 1 1 . 4 . 5 . 5 . 11 . . Terminals 53 | . 10 16 1 . . 1 . 9 . 5 . 8 . 3 Fabricators 8 | . . . . . . . . . . 3 . 3 . 2 Repair Stations 12 | . 2 4 . . . . . . . 2 . 4 . . Recycling Units 3 | . 2 . . . . . . . . . . 1 . . Scanalyzers 6 | . . . . . . . . . . 6 . . . . Garrison Access 14 | . . . . . . 4 . 2 . 3 . 4 . 1 Terminal Hacks 20 | . 1 7 1 5 . . . 3 . 1 . 1 . 1 Record 4 | . . . . 4 . . . . . . . . . . Robot Analysis 4 | . 1 2 . . . . . . . 1 . . . . Prototype ID Bank 2 | . . 2 . . . . . . . . . . . . Branch Access Points 1 | . . 1 . . . . . . . . . . . . Terminal Index 1 | . . . . . . . . . . . . . . 1 Fabricator Index 1 | . . . . . . . . . . . . 1 . . Unreport Threat 4 | . . 1 . . . . . 3 . . . . . . Zone Layout 2 | . . 1 1 . . . . . . . . . . . EX-Prototype ID Bank 1 | . . . . 1 . . . . . . . . . . Fabricator Hacks 4 | . . . . . . . . . . 3 . 1 . . Load Schematic 2 | . . . . . . . . . . 1 . 1 . . Build 2 | . . . . . . . . . . 2 . . . . Repair Station Hacks 8 | . 1 4 . . . . . . . . . 3 . . Scan Component 5 | . 1 2 . . . . . . . . . 2 . . Repair 3 | . . 2 . . . . . . . . . 1 . . Recycling Unit Hacks 2 | . 2 . . . . . . . . . . . . . Process 1 | . 1 . . . . . . . . . . . . . Retrieve Matter 1 | . 1 . . . . . . . . . . . . . Scanalyzer 6 | . . . . . . . . . . 6 . . . . Insert Component 3 | . . . . . . . . . . 3 . . . . Analyze 3 | . . . . . . . . . . 3 . . . . Garrison Access Hacks 6 | . . . . . . 1 . 1 . 1 . 2 . 1 Unlock Access 4 | . . . . . . 1 . 1 . 1 . 1 . . Seal Access 2 | . . . . . . . . . . . . 1 . 1 Unauthorized Hacks 17 | . 4 4 . . . 2 . 2 . 2 . 3 . . Terminals 11 | . 4 4 . . . . . 1 . 1 . 1 . . Track 3 | . 1 1 . . . . . . . . . 1 . . Assimilate 1 | . 1 . . . . . . . . . . . . . Botnet 6 | . 2 3 . . . . . 1 . . . . . . Operators 1 | . . . . . . . . . . 1 . . . . Fabricators . | . . . . . . . . . . . . . . . Repair Stations 2 | . . . . . . . . . . 1 . 1 . . Mechanics 2 | . . . . . . . . . . 1 . 1 . . Recycling Units 1 | . . . . . . . . . . . . 1 . . Mask 1 | . . . . . . . . . . . . 1 . . Scanalyzers . | . . . . . . . . . . . . . . . Garrison Access 3 | . . . . . . 2 . 1 . . . . . . Restock 2 | . . . . . . 1 . 1 . . . . . . Reprogram 1 | . . . . . . 1 . . . . . . . . Data Cores Recovered . | . . . . . . . . . . . . . . . Used . | . . . . . . . . . . . . . . . Hacking Detections 36 | . 6 6 1 . . 2 . 3 . 5 . 10 . 3 Full Trace Events 3 | . . 1 . . . . . . . 1 . 1 . . Feedback Events . | . . . . . . . . . . . . . . . Feedback Blocked . | . . . . . . . . . . . . . . . Robot Schematics Acquired . | . . . . . . . . . . . . . . . Robots Built . | . . . . . . . . . . . . . . . Matter . | . . . . . . . . . . . . . . . Time . | . . . . . . . . . . . . . . . Total Robot Build Rating . | . . . . . . . . . . . . . . . Part Schematics Acquired 3 | . . . . . . . . . . 3 . . . . Parts Built 2 | . . . . . . . . . . 2 . . . . Matter 270 | . . . . . . . . . . 270 . . . . Time 135 | . . . . . . . . . . 135 . . . . Total Part Build Rating 5 | . . . . . . . . . . 5 . . . . Parts Repaired 3 | . . 2 . . . . . . . . . 1 . . Time 96 | . . 52 . . . . . . . . . 44 . . Parts Recycled . | . . . . . . . . . . . . . . . Recycled Matter 125 | . 125 . . . . . . . . . . . . . Retrieved Matter 125 | . 125 . . . . . . . . . . . . . Retrieved Components . | . . . . . . . . . . . . . . . Parts Scanalyzed 3 | . . . . . . . . . . 3 . . . . Part Schematics Acquired 3 | . . . . . . . . . . 3 . . . . Parts Damaged 1 | . . . . . . . . . . 1 . . . . Bothacking | -11 -10 -9 -9 -9 -8 -8 -8 -8 -8 -7 -7 -7 -7 -6 ------------ Run | Scr Mat Mat Min Exi Min Mat Gar Mat Gar Fac Gar Fac Gar Fac Used RIF Installer 4 | . . . . . . . 1 . 1 . 1 . 1 . Coupler Efficiency 2 | . . . . . . . . . 1 . 1 . . . Structural Interface 1 | . . . . . . . . . . . . . 1 . Robots Hacked 62 | . . . . . . . 3 7 3 4 13 11 9 12 Non-combat 13 | . . . . . . . . . . 2 . 5 . 6 Combat 49 | . . . . . . . 3 7 3 2 13 6 9 6 Robot Hacks Applied 69 | . . . . . . . 3 7 3 6 13 13 9 15 find_chute 1 | . . . . . . . . . . . . . . 1 deconstruct_machine 1 | . . . . . . . . . . . . . . 1 find_fabricator 1 | . . . . . . . . . . . . . . 1 drop_inventory 4 | . . . . . . . . . . 1 . 2 . 1 ignore_parts 2 | . . . . . . . . . . . . . . 2 purge_threat 3 | . . . . . . . . . . 1 . 2 . . map_route 3 | . . . . . . . . . . . . 2 . 1 find_garrison 4 | . . . . . . . . 1 . 1 . 1 . 1 link_fov 1 | . . . . . . . . . . . 1 . . . spike_heat 1 | . . . . . . . . . . . . . . 1 amplify_resonance 2 | . . . . . . . . . . 1 . 1 . . reboot_system 5 | . . . . . . . . 2 . . 1 . 1 1 overwrite_iff 5 | . . . . . . . . . 1 . 2 1 . 1 streamctrl_high 1 | . . . . . . . . . 1 . . . . . formatsys_low 2 | . . . . . . . . . . 1 . . . 1 formatsys_high 33 | . . . . . . . 3 4 1 1 9 4 8 3 Relay Couplers Released 68 | . . . . . . 4 15 4 11 . 16 2 16 . Machine Destruction 60 | . . . . . . . 15 . 11 . 16 2 16 . Programmers 8 | . . . . . . 4 . 4 . . . . . . Attached 26 | . . . . . . . 3 3 1 3 4 4 5 3 Robots Rewired . | . . . . . . . . . . . . . . . Allies Hacked 1 | . . . . . . . . . . . . . . 1 Hacks Repelled . | . . . . . . . . . . . . . . . Allies | -11 -10 -9 -9 -9 -8 -8 -8 -8 -8 -7 -7 -7 -7 -6 -------- Run | Scr Mat Mat Min Exi Min Mat Gar Mat Gar Fac Gar Fac Gar Fac Total Allies 43 | . . . 2 . . . 3 4 3 2 11 5 8 5 Largest Group 5 | . . . 2 2 . . 1 3 3 4 5 4 4 4 Highest-Rated Group 143 | . . . 49 49 . . 15 60 53 95 94 76 112 143 Highest-Rated Ally 47 | . . . 31 31 . . 15 29 21 32 32 30 32 47 Total Orders 22 | . . . . . . . 3 5 6 . 2 6 . . STAY 3 | . . . . . . . 1 . 1 . . 1 . . GOTO 11 | . . . . . . . 1 3 3 . 2 2 . . ROAM 1 | . . . . . . . . . . . . 1 . . FOLLOW 7 | . . . . . . . 1 2 2 . . 2 . . Ally Attacks 363 | . . . 9 . . . 18 115 25 16 60 41 31 48 Total Damage 6997 | . . . 128 . . . 442 1467 413 323 935 586 408 2295 Kills 64 | . . . 1 . . . 2 15 9 3 4 7 3 20 Allies Corrupted . | . . . . . . . . . . . . . . . Allies Melted 1 | . . . . . . . . . . . 1 . . . Intel | -11 -10 -9 -9 -9 -8 -8 -8 -8 -8 -7 -7 -7 -7 -6 ------- Run | Scr Mat Mat Min Exi Min Mat Gar Mat Gar Fac Gar Fac Gar Fac Robot Analysis Total 4 | . 1 2 . . . . . . . 1 . . . . Derelict Logs Recovered 1 | . . . 1 . . . . . . . . . . . Drone Launches . | . . . . . . . . . . . . . . . Drone Recoveries . | . . . . . . . . . . . . . . . Exploration | -11 -10 -9 -9 -9 -8 -8 -8 -8 -8 -7 -7 -7 -7 -6 ------------- Run | Scr Mat Mat Min Exi Min Mat Gar Mat Gar Fac Gar Fac Gar Fac Turns Passed 22825 | 434 1303 1368 1037 955 982 1229 3731 1100 2072 891 1809 1827 2017 2070 Spaces Moved 9970 | 231 625 555 513 465 424 334 1349 374 822 539 930 995 949 865 Core 3 | 2 . . . . . . . . . . . . . 1 Treads 5244 | 229 625 555 513 465 424 334 1220 374 505 . . . . . Legs 319 | . . . . . . . 129 . . . . . . 190 Wheels 4404 | . . . . . . . . . 317 539 930 995 949 674 Hover . | . . . . . . . . . . . . . . . Flight . | . . . . . . . . . . . . . . . Fastest Speed 50 | 50 160 180 180 180 220 220 220 220 160 150 150 140 160 130 Average Speed 185 | 159 163 180 180 201 220 220 245 234 209 151 151 154 160 165 Slowest Speed 1500 | 160 180 220 220 220 220 220 390 240 320 160 160 160 160 1500 Overloaded Moves . | . . . . . . . . . . . . . . . Propulsion Burnouts . | . . . . . . . . . . . . . . . Robots Hopped . | . . . . . . . . . . . . . . . Cave-ins Triggered . | . . . . . . . . . . . . . . . Exploration Rate (%) 56 | 13 93 46 77 70 63 27 83 41 79 9 99 29 97 24 Regions Visited 14 Branch Regions 3 Pre-discovered Areas 1 | . . . . 1 . . . . . . . . . . Known Exits Taken 5 | . . 1 . . . 1 . 1 . 1 . 1 . . Unknown Exits Taken 5 | 1 1 . 1 1 1 . . . . . . . . . Scrap Searched 4 | . . . 4 . . . . . . . . . . . Spaces Dug 43 | . . . . . . . 2 18 . 2 . 21 . . Terrain Destroyed 509 | . . 2 7 . 75 26 6 41 8 2 99 102 37 104 Melee 2 | . . . . . . . . . . 2 . . . . Projectile 37 | . . 2 . . 1 1 . . . . . . 2 31 AOE 470 | . . . 7 . 74 25 6 41 8 . 99 102 35 73 Actions | -11 -10 -9 -9 -9 -8 -8 -8 -8 -8 -7 -7 -7 -7 -6 --------- Run | Scr Mat Mat Min Exi Min Mat Gar Mat Gar Fac Gar Fac Gar Fac Total 12594 | 258 768 776 565 488 447 578 1596 508 1081 605 1198 1192 1347 1187 Wait 731 | . 27 94 9 . . 29 52 25 136 14 50 40 228 27 Move 9957 | 230 624 554 512 464 423 333 1348 373 821 538 929 995 948 865 Hop . | . . . . . . . . . . . . . . . Pick Up 221 | 3 18 20 4 11 2 20 20 11 10 12 17 32 18 23 Fast Attach 57 | 7 4 4 1 . . 8 7 3 2 1 3 1 1 15 Attach 84 | . 3 6 3 2 . 8 7 5 1 3 11 9 6 20 Detach 6 | . . . . . . 3 . . . . 1 . . 2 Swap 219 | . 8 14 3 3 5 12 34 18 20 10 25 29 18 20 Drop 173 | . 10 10 1 8 1 23 25 14 10 12 12 19 13 15 Fire 983 | 18 74 74 30 . 16 141 89 59 48 13 93 65 75 188 Melee 13 | . . . . . . . 2 . 3 2 . 2 . 4 Ram . | . . . . . . . . . . . . . . . Kick 1 | . . . . . . . 1 . . . . . . . Crush 3 | . . . 2 . . 1 . . . . . . . . Escape Stasis 145 | . . . . . . . 11 . 30 . 56 . 40 8 Rewire 1 | . . . . . . . . . . . 1 . . . Trap . | . . . . . . . . . . . . . . . Miscellaneous . | . . . . . . . . . . . . . . . Route ------- -11/Scrapyard -10/Materials (discovered 5 exits: *Mat x3 / [*Min x2]) -9/Materials (discovered 3 exits: *Mat / *Min x2) -9/Mines (discovered 3 exits: *Mat x2 / *Exi) -9/Exiles (discovered 2 exits: [*Min x2]) -8/Mines -8/Materials -8/Garrison (discovered 3 exits: *Mat x3) -8/Materials (discovered 3 exits: *Fac x2 / Gar) -8/Garrison (discovered 3 exits: *Fac x3) -7/Factory (discovered 2 exits: [*Sto] / Gar) -7/Garrison (discovered 3 exits: *Fac x3) -7/Factory (discovered 3 exits: *Fac / [Low] / Gar) -7/Garrison (discovered 3 exits: *Fac x3) -6/Factory History --------- Turn | Location | Event 15 | -11/Scrapyard | Discovered new exit (range 15) 435 | -11/Scrapyard | Entered Materials 436 | -10/Materials | Build established: Mutant 898 | -10/Materials | Discovered new exit (range 15) 1078 | -10/Materials | Discovered new exit (range 10) 1298 | -10/Materials | Discovered new exit (range 15) 1409 | -10/Materials | Discovered new exit (range 9) 1506 | -10/Materials | Central database locked down 1544 | -10/Materials | Discovered new exit (range 8) 1738 | -10/Materials | Entered another Materials area 1738 | -9/Materials | Evolved 2 slots: Utility x2 2049 | -9/Materials | Build established: Hauler-Mutant 2131 | -9/Materials | Lost 3 parts (1p2n) 2224 | -9/Materials | Central database locked down 2446 | -9/Materials | Repaired Lgt. Armor Plating 2473 | -9/Materials | Repaired Lgt. Treads 2815 | -9/Materials | Discovered new exit (range 9) 2820 | -9/Materials | Identified exit to Mines 3106 | -9/Materials | Entered Mines 3135 | -9/Mines | Discovered new exit (range 8) 3558 | -9/Mines | Discovered new exit (range 10) 3605 | -9/Mines | Learned Materials trap positions 3724 | -9/Mines | A weapon hastily lodged in a ceiling crevice suddenly fell to the ground 4128 | -9/Mines | Deemed a non-threat by the Exiles lab entrance 4129 | -9/Mines | Discovered new exit (range 5) 4143 | -9/Mines | Entered Exiles 4143 | -9/Exiles | Accompanied by 2 allies 4173 | -9/Exiles | Led the pair of lost Derelicts to a safe place 4313 | -9/Exiles | Discovered new exit (range 15) 4363 | -9/Exiles | Met 8R-AWN 4389 | -9/Exiles | Met EX-HEX 4494 | -9/Exiles | Met EX-DEC 4538 | -9/Exiles | Learned location of Zion (-6) 4774 | -9/Exiles | Met EX-BIN 4799 | -9/Exiles | Aligned with FarCom system 4801 | -9/Exiles | Given EX-Vault access code 4853 | -9/Exiles | Opened EX-Vault 4864 | -9/Exiles | Found Modified TNC 4869 | -9/Exiles | Found AWS/Gauss 4873 | -9/Exiles | Found Field Lobotomy Kit 4924 | -9/Exiles | Warned to stay clear of 0b10 Research branches 4945 | -9/Exiles | Exiles lab attacked by MAIN.C 5069 | -9/Exiles | Discovered new exit (range 14) 5098 | -9/Exiles | Stole three prototypes: Modified TNC, AWS/Gauss, Field Lobotomy Kit 5098 | -9/Exiles | Entered Mines 5807 | -8/Mines | Discovered new exit (range 6) 6080 | -8/Mines | Entered Materials 6080 | -8/Materials | Evolved 2 slots: Utility x2 6081 | -8/Materials | Loaded intel: 32 trap records 6431 | -8/Materials | Destroyed 7 combat bots 7115 | -8/Materials | Garrison activated, responded to threat 7194 | -8/Materials | Identified exit to Garrison 7309 | -8/Materials | Entered Garrison 7378 | -8/Garrison | Triggered checkpoint 7508 | -8/Garrison | Triggered checkpoint 7609 | -8/Garrison | Discovered new exit (range 11) 7886 | -8/Garrison | Triggered checkpoint 8027 | -8/Garrison | Discovered new exit (range 12) 8255 | -8/Garrison | Discovered new exit (range 15) 8324 | -8/Garrison | Installed Relay Interface Framework 8599 | -8/Garrison | Triggered checkpoint 8832 | -8/Garrison | Triggered checkpoint 8933 | -8/Garrison | Garrison Relay disabled 9252 | -8/Garrison | Triggered checkpoint 9279 | -8/Garrison | Core integrity fell below 50% 9514 | -8/Garrison | Garrison Relay disabled 9805 | -8/Garrison | Build established: Bothacker-Mutant 9954 | -8/Garrison | Triggered checkpoint 9998 | -8/Garrison | Triggered checkpoint 10015 | -8/Garrison | Garrison Relay disabled 10512 | -8/Garrison | Triggered checkpoint 10576 | -8/Garrison | Garrison Relay disabled 11040 | -8/Garrison | Entered Materials 11040 | -8/Materials | Accompanied by 1 ally 11390 | -8/Materials | Discovered new exit (range 12) 11911 | -8/Materials | Discovered new exit (range 5) 11972 | -8/Materials | Identified exit to Garrison 12059 | -8/Materials | Garrison activated, responded to threat 12140 | -8/Materials | Entered Garrison 12140 | -8/Garrison | Accompanied by 1 ally 12256 | -8/Garrison | Triggered checkpoint 12285 | -8/Garrison | Triggered checkpoint 12352 | -8/Garrison | Triggered checkpoint 12429 | -8/Garrison | Discovered new exit (range 14) 12625 | -8/Garrison | Discovered new exit (range 14) 12775 | -8/Garrison | Triggered checkpoint 12890 | -8/Garrison | Discovered new exit (range 14) 12933 | -8/Garrison | Expanded RIF knowledge: Coupler Efficiency 13012 | -8/Garrison | Triggered checkpoint 13045 | -8/Garrison | Garrison Relay disabled 13362 | -8/Garrison | Build established: Bothacker-Skirmisher 13397 | -8/Garrison | Triggered checkpoint 13590 | -8/Garrison | Garrison Relay disabled 14032 | -8/Garrison | Triggered checkpoint 14061 | -8/Garrison | Garrison Relay disabled 14212 | -8/Garrison | Entered Factory 14212 | -7/Factory | Accompanied by 2 allies 14212 | -7/Factory | Evolved 2 slots: Utility x2 14214 | -7/Factory | FarCom data flow suspended 14508 | -7/Factory | Build established: Bothacker-Mutant 14543 | -7/Factory | Fabricated Hvy. Rocket Launcher? 14790 | -7/Factory | Fabricated Humpback? 14997 | -7/Factory | Identified exit to Garrison 15033 | -7/Factory | Discovered new exit (range 16) 15103 | -7/Factory | Entered Garrison 15103 | -7/Garrison | Accompanied by 2 allies 15111 | -7/Garrison | Expanded RIF knowledge: Coupler Efficiency 15133 | -7/Garrison | Phase Generator disabled 15218 | -7/Garrison | Triggered checkpoint 15378 | -7/Garrison | Triggered checkpoint 15443 | -7/Garrison | Discovered new exit (range 14) 15592 | -7/Garrison | Triggered checkpoint 15652 | -7/Garrison | Triggered checkpoint 15685 | -7/Garrison | Lost 5 parts (1p1n2u1w) 15706 | -7/Garrison | Garrison Relay disabled 15848 | -7/Garrison | Triggered checkpoint 15855 | -7/Garrison | Triggered checkpoint 15951 | -7/Garrison | Discovered new exit (range 14) 16012 | -7/Garrison | Triggered checkpoint 16032 | -7/Garrison | Garrison Relay disabled 16273 | -7/Garrison | Triggered checkpoint 16316 | -7/Garrison | Garrison Relay disabled 16360 | -7/Garrison | Discovered new exit (range 14) 16752 | -7/Garrison | Triggered checkpoint 16773 | -7/Garrison | Garrison Relay disabled 16912 | -7/Garrison | Entered Factory 16912 | -7/Factory | Accompanied by 4 allies 17523 | -7/Factory | Discovered new exit (range 75) 17746 | -7/Factory | Found Rocket Array 17762 | -7/Factory | Lost 3 parts (1p1n1u) 17827 | -7/Factory | Discovered new exit (range 9) 17841 | -7/Factory | Core integrity fell below 50% 18436 | -7/Factory | Repaired Hvy. Rocket Launcher 18739 | -7/Factory | Identified exit to Garrison 18739 | -7/Factory | Entered Garrison 18747 | -7/Garrison | Expanded RIF knowledge: Structural Interface 18908 | -7/Garrison | Triggered checkpoint 19030 | -7/Garrison | Build established: Botlord-Mutant 19168 | -7/Garrison | Triggered checkpoint 19178 | -7/Garrison | Triggered checkpoint 19190 | -7/Garrison | Triggered checkpoint 19315 | -7/Garrison | Triggered checkpoint 19396 | -7/Garrison | Build established: Bothacker-Mutant 19460 | -7/Garrison | Garrison Relay disabled 19556 | -7/Garrison | Discovered new exit (range 7) 19642 | -7/Garrison | Triggered checkpoint 19737 | -7/Garrison | Discovered new exit (range 11) 19753 | -7/Garrison | Triggered checkpoint 19769 | -7/Garrison | Garrison Relay disabled 19770 | -7/Garrison | Build established: Botlord-Mutant 20038 | -7/Garrison | Triggered checkpoint 20056 | -7/Garrison | Discovered new exit (range 14) 20092 | -7/Garrison | Triggered checkpoint 20177 | -7/Garrison | Garrison Relay disabled 20364 | -7/Garrison | Triggered checkpoint 20377 | -7/Garrison | Garrison Relay disabled 20756 | -7/Garrison | Entered Factory 20756 | -6/Factory | Accompanied by 4 allies 20756 | -6/Factory | Evolved 2 slots: Utility x2 21106 | -6/Factory | First assault squad dispatched 21473 | -6/Factory | Garrison activated, responded to threat 21701 | -6/Factory | Lost 4 parts (1n2u1w) 21765 | -6/Factory | Lost 3 parts (3u) 21804 | -6/Factory | Garrison activated, responded to threat 21897 | -6/Factory | Lost 3 parts (1n1u1w) 21920 | -6/Factory | Garrison activated, responded to threat 21962 | -6/Factory | Build established: Hauler-Mutant 21992 | -6/Factory | Lost 3 parts (1n2u) 22321 | -6/Factory | Lost 7 parts (1p2n3u1w) 22474 | -6/Factory | Core integrity fell below 50% 22688 | -6/Factory | Build established: Scavenger-Mutant 22816 | -6/Factory | Core integrity fell below 20% 22826 | -6/Factory | Self-destructed Last Messages --------------- 22811_ K-01 Serf collects debris. 22812_ Nuclear Reactor explodes. 22812_ K-01 Serf destroyed. 22812_ Penetrated by Slug. 22812_ U-05 Engineer lays Concrete. 22815_ The unstable cave ceiling collapses. 22815_ U-05 Engineer lays Concrete. 22817_ Slug penetrates H-66 Slayer. 22818_ U-05 Engineer builds a Wall. 22818_ Penetrated by Slug. 22818_ Coil Gun destroyed. 22820_ Slug penetrates H-66 Slayer. 22820_ U-05 Engineer lays Concrete. 22821_ Penetrated by Slug. 22822_ The unstable cave ceiling collapses. 22822_ U-05 Engineer builds a Door. 22822_ Slug penetrates H-66 Slayer. 22824_ Relay Coupler [Brawler] destroyed. 22824_ Slug penetrates Wall. 22826_ U-05 Engineer builds a Door. Map ----- +----------------------------------------------------+ | ???????????????????????????????????? | | ??????????????????????????????????? | | ??????????????????????????????????? | | ??????????????????????????????????? | | ???????????????????????????????????" | | ?????????????????????????????????""" * | | ????????????????????????????????"""" | | ????????????????????????????????"""" | | ???????????????????? ??? | | ???????????????????+ "?"""" | | ??????????????? ???# """""" | | ??????????????? ???# """""" | | ??????????????? ???# """""" # | | ?????????????"" ???# # | | ?????????????"" ???# """ # | | ????????????? ???# """ # | | ???????????### #### """ # | | ???????????# # | | ??????????## # | | ??????????# """ # | | ??????????# """ %# | | ??????????# """ | | ??????????# # | | ???#+####### %=[ + | | # ! *Yh* # | | # ! =@ # | | # #%[ " ######## !!! | | ? " " ??????#+######??????# !!! | | ????????????#% ???????????# !!! | | ????????????# ???????????# | | ????????????+ ??????????# | | ????????????# ??????????# | | ????????????# ?????????# | | ????????????# ?????????# | | ????????????# ????????# """"""" | | ????????????? ????????# """"""" | | ????????????? #???????# """"""" | | ????????????? +???????# """"""" | | ????????????? #???????+ ? | | ????????????? #???????# ????""" | | ????????????? ????????# ??????" | | ????????????? ??????????# ??????? | | ???????????????????????????????????? | | ???????????????????????????????????? | | ???????????????????????????????????? | | ???????????????????????????????????? | | ???????????????????????????????????? | | ???????????????????????????????????#? | | ?????????????????????????????????????? | | ??????????????????????????????????????? | +----------------------------------------------------+ Best States ------------- Heat Dissipation 75 Coolant Potential 65 Energy Generation 18 Energy Capacity 560 Matter Stores 419 Matter Capacity 500 Sight Range 16 Terrain Scan Range 20 Terrain Scan Density 10 Armor Coverage 1500 Resistance: KI 30 Resistance: TH 15 Core Shielding 20 Weapon Cycling 15 Phase Shifting 5 Evasion (%) 45 Armor Integrity Analysis 33 Recoil Reduction 2 Particle Charging 20 Item Schematics ----------------- Humpback | -7/Factory | Scanalyzed Remote Datajack | -7/Factory | Scanalyzed Enh. Autogun | -7/Factory | Scanalyzed Robot Schematics ------------------ None Fabricated ------------ Hvy. Rocket Launcher | x1 | -7/Factory | Preloaded Humpback | x1 | -7/Factory Alien Tech Used ----------------- None Achievements -------------- None Challenges ------------ None Game ------ Seed StructuralFluxProjector Manual? 0 Play Time 02:29:26 Cumulative 470.9 hours Start 2020.09.11 @ 15:56:54 End 2020.09.12 @ 16:04:48 Sessions 7 Manual Loads 0 Difficulty Rogue Special Mode None Game No. 313 Rogue 313 Adventurer 0 Explorer 0 Win Type - Total 4 Types 4/0/0/0/0/0/0 Lore% 86 Gallery% 88 Achievement% 66 Wizard Run 0 Options --------- ASCII 0 Keyboard 0 Movement Mouse Keybinds 1 Fullscreen 2 Font 24/Smallcaps Map View 68x50 Tactical HUD 1 Map Filters NONE Filters NONE Steam 1 RUN: cd116e4e-58bb-40fc-9838-782a8c9226ef